[Event "2nd Asian Nations Team Cup U14 2019"]
[Site "Shenzhen"]
[Date "2019.12.23"]
[Round "6.8"]
[White "Khorshidi, Mohammad Javad"]
[Black "Chen, Yuan"]
[Result "1/2-1/2"]
[ECO "D13"]
[WhiteElo "2094"]
[BlackElo "2056"]
[Annotator "NA RC"]
[PlyCount "88"]
[EventDate "2019.12.19"]
[EventType "team-tourn"]
[EventCountry "CHN"]
[SourceTitle "playchess.com"]
[Source "ChessBase"]
[SourceQuality "1"]
[WhiteTeam "Iran"]
[BlackTeam "China"]
[WhiteTeamCountry "IRI"]
[BlackTeamCountry "CHN"]
[TimeControl "5400+30"]

{[%evp 8,86,25,20,31,26,31,12,12,18,22,29,35,16,41,46,36,34,21,20,25,25,39,31,43,32767,32767,32767,32767,39,32767,32767,32767,32767,32767,43,46,55,32767,32767,32767,32767,32767,32767,132,122,127,43,32767,32767,3,20,22,11,18,10,42,8,18,32767,32767,32767,32767,32767,32767,0,0,0,0,32767,32767,32767,32767,32767,32767,32767,0,0,0,0,0]} 1. d4 {[%emt 0:00:00]} d5 {[%emt 0:00:00]} 2. c4 {[%emt 0:00:00]} c6 {[%emt 0:00:00]} 3. cxd5 {[%emt 0:00:24]} cxd5 {[%emt 0:00:00]} 4. Bf4 {[%emt 0:01:29]} Nf6 {[%emt 0:01:53]} 5. Nc3 {[%emt 0:00:10]} e6 {[%emt 0:00:55]} 6. e3 {[%emt 0:00:13]} Bd6 {[%emt 0:01:55]} 7. Bg3 {[%emt 0:01:09]} O-O {[%emt 0:00:09]} 8. Bd3 {[%emt 0:00:12]} Nc6 {[%emt 0:00:09]} 9. Nf3 {[%emt 0:00:14]} Ne8 {[%emt 0:05:12] D13: Slav Defence: Exchange variation without ...Bf5} (9... h6 10. O-O Bxg3 11. hxg3 Qd6 12. a3 Bd7 13. b4 Rfc8 14. Qb3 e5 15. Nb5 Qe7 16. Nxe5 Nxe5 17. dxe5 Qxe5 18. Nd4 Ne4 19. Bxe4 dxe4 20. Rac1 b6 {½-½ (20) Kiewra,K (2426)-Kamsky,G (2638) Rockville 2016}) 10. Ne5 {[%emt 0:08:13]} f5 {[%emt 0:04:13]} 11. Nxc6 $146 {[%emt 0:22:06]} ({Predecessor:} 11. O-O Qf6 12. f4 Qe7 13. Rc1 Bd7 14. Bb5 Rc8 15. Nd3 Nb4 16. Bh4 Nf6 17. a3 Bxb5 18. Bxf6 gxf6 19. Nxb5 Nxd3 20. Qxd3 {½-½ (40) Restas,P (2293)-Simon,N (2148) Heves 2001}) 11... bxc6 {[%emt 0:00:05]} 12. Bxd6 {[%emt 0:04:14]} Qxd6 {[%emt 0:01:00]} 13. O-O {[%emt 0:00:40]} c5 {[%emt 0:04:23]} 14. dxc5 {[%emt 0:09:56]} Qxc5 {[%emt 0:00:12]} 15. Rc1 {[%emt 0:00:07]} Qb4 {[%emt 0:06:59]} 16. Na4 {[%emt 0:06:13]} Nf6 {[%emt 0:02:21]} 17. b3 {[%emt 0:03:33]} Qd6 18. Nc5 {[%emt 0:07:11]} Bd7 {[%emt 0:15:58]} 19. b4 {[%emt 0:04:04]} Rfb8 {[%emt 0:08:13]} 20. Qd2 {[%emt 0:02:17]} Bb5 {[%emt 0:02:02]} 21. Bxb5 {[%emt 0:03:12]} Rxb5 {[%emt 0:00:02]} 22. a4 {[%emt 0:00:45]} Rb6 {[%emt 0:01:22]} 23. b5 {[%emt 0:02:43]} Ne4 {[%emt 0:07:56]} 24. Qd4 {[%emt 0:06:59]} h6 25. Na6 {[%emt 0:02:33]} Rd8 {[%emt 0:16:57]} 26. f3 {[%emt 0:02:23]} Nf6 {[%emt 0:00:04]} 27. Qd3 {[%emt 0:01:53]} ({Better is} 27. Rfd1 $16) 27... d4 {[%emt 0:05:51]} 28. exd4 {[%emt 0:00:58]} Qxd4+ {[%emt 0:00:32]} 29. Qxd4 {[%emt 0:00:01]} Rxd4 {[%emt 0:00:01]} 30. Nc5 {[%emt 0:01:49]} Nd7 {[%emt 0:04:22]} 31. Nxd7 {[%emt 0:00:31]} Rxd7 {[%emt 0:00:04]} 32. Rfd1 {[%emt 0:01:55]} Rxd1+ {[%emt 0:03:34]} 33. Rxd1 {[%emt 0:00:01]} a6 {[%emt 0:00:13]} 34. Rb1 {[%emt 0:01:21]} axb5 {[%emt 0:00:05]} 35. Rxb5 {[%emt 0:00:10]} Rc6 {[%emt 0:02:56]} 36. Rb7 {[%emt 0:03:39]} Ra6 {[%emt 0:04:47]} 37. Rb4 e5 {[%emt 0:02:01]} 38. Rb5 {[%emt 0:00:42]} Rxa4 {[%emt 0:00:27]} 39. Rxe5 {[%emt 0:00:08]} f4 {[%emt 0:00:38]} 40. Re7 {[%emt 0:00:29]} Kh7 {[%emt 0:00:21]} 41. Re6 {[%emt 0:00:09]} Kg8 {[%emt 0:01:01]} 42. Re7 {[%emt 0:00:06]} Kh7 {[%emt 0:00:37]} 43. Re6 {[%emt 0:00:06]} Kg8 $11 {[%emt 0:00:13]} 44. Re7 {[%emt 0:00:06]} Kh7 {[%emt 0:00:11]} 1/2-1/2

[Event "2nd Asian Nations Team Cup U14 2019"]
[Site "Shenzhen"]
[Date "2019.12.23"]
[Round "6.10"]
[White "Temuujin, Kherlen"]
[Black "Tsogtbayar, Batlut"]
[Result "0-1"]
[ECO "D11"]
[WhiteElo "1711"]
[BlackElo "1404"]
[Annotator "NA RC"]
[PlyCount "148"]
[EventDate "2019.12.19"]
[EventType "team-tourn"]
[EventCountry "CHN"]
[SourceTitle "playchess.com"]
[Source "ChessBase"]
[SourceQuality "1"]
[WhiteTeam "Mongolia"]
[BlackTeam "Mongolia"]
[WhiteTeamCountry "MGL"]
[BlackTeamCountry "MGL"]
[TimeControl "5400+30"]

1. c4 {[%emt 0:00:00]} Nf6 {[%emt 0:00:00]} 2. g3 {[%emt 0:00:35]} c6 {[%emt 0:00:42]} 3. Nf3 {[%emt 0:00:59]} d5 {[%emt 0:01:16]} 4. d4 {[%emt 0:00:09]} dxc4 {[%emt 0:07:16]} 5. Bg2 {[%emt 0:03:29]} Nbd7 {[%emt 0:05:25]} 6. Nbd2 {[%emt 0:05:34]} Nb6 {[%emt 0:10:30]} 7. Qc2 {[%emt 0:00:27]} Bg4 {[%emt 0:09:46]} 8. e3 {[%emt 0:03:31]} Qd5 {[%emt 0:05:19]} 9. O-O {[%emt 0:00:29]} Bf5 {[%emt 0:01:30]} 10. Qd1 {[%emt 0:01:40]} e6 {[%emt 0:06:46]} 11. Re1 {[%emt 0:20:21]} Bg4 {[%emt 0:06:02]} 12. Qc2 {[%emt 0:03:56]} Bxf3 13. Bxf3 {[%emt 0:00:20]} Qa5 {[%emt 0:05:52]} 14. Rd1 {[%emt 0:01:12]} Qa4 {[%emt 0:07:50]} 15. Qxa4 {[%emt 0:01:19]} Nxa4 {[%emt 0:00:09]} 16. Nxc4 {[%emt 0:00:06]} Nb6 {[%emt 0:00:29]} 17. Na5 {[%emt 0:00:50]} Rb8 {[%emt 0:01:46]} 18. Nxb7 {[%emt 0:00:50]} Rxb7 {[%emt 0:01:02]} 19. Bxc6+ {[%emt 0:00:07]} Rd7 {[%emt 0:00:41]} 20. Bd2 {[%emt 0:00:55]} Kd8 {[%emt 0:00:55]} 21. Bxd7 {[%emt 0:00:08]} Kxd7 {[%emt 0:00:14]} 22. Rdc1 {[%emt 0:05:58]} Be7 {[%emt 0:01:38]} 23. f3 {[%emt 0:00:25]} Rc8 {[%emt 0:00:58]} 24. Rxc8 {[%emt 0:03:32]} Nxc8 {[%emt 0:00:36]} 25. e4 {[%emt 0:08:24]} Ne8 {[%emt 0:00:29]} 26. Kf2 {[%emt 0:01:15]} Bd8 {[%emt 0:00:21]} 27. Ke2 {[%emt 0:01:44]} Bb6 {[%emt 0:00:16]} 28. Kd3 {[%emt 0:00:17]} Ne7 {[%emt 0:00:48]} 29. Bc3 {[%emt 0:03:59]} g6 {[%emt 0:01:37]} 30. b4 {[%emt 0:05:58]} a6 {[%emt 0:00:21]} 31. a4 {[%emt 0:00:55]} f5 {[%emt 0:00:42]} 32. Rb1 {[%emt 0:08:04]} Nc7 {[%emt 0:00:26]} 33. Kc4 {[%emt 0:03:21]} Nc8 {[%emt 0:01:45]} 34. Kd3 {[%emt 0:01:13]} Nd6 {[%emt 0:00:30]} 35. Re1 {[%emt 0:00:30]} h5 {[%emt 0:00:40]} 36. Re2 {[%emt 0:06:28]} Nc8 {[%emt 0:01:24]} 37. Ra2 {[%emt 0:01:18]} Nd6 {[%emt 0:00:14]} 38. Re2 {[%emt 0:00:08]} Nf7 {[%emt 0:00:38]} 39. Re1 {[%emt 0:01:02]} Ng5 {[%emt 0:00:42]} 40. Rf1 {[%emt 0:00:10]} Ne8 {[%emt 0:00:55]} 41. Bd2 {[%emt 0:00:14]} Nf7 {[%emt 0:00:28]} 42. Bc3 {[%emt 0:03:13]} Nc7 {[%emt 0:00:36]} 43. Rb1 {[%emt 0:00:27]} Nd6 {[%emt 0:00:10]} 44. Re1 {[%emt 0:00:21]} Na8 {[%emt 0:00:23]} 45. Rb1 {[%emt 0:00:19]} Bd8 {[%emt 0:00:31]} 46. Re1 {[%emt 0:01:32]} Nb6 {[%emt 0:00:35]} 47. Ra1 {[%emt 0:00:08]} Nbc8 {[%emt 0:00:38]} 48. Rb1 {[%emt 0:00:27]} Nb6 {[%emt 0:01:00]} 49. Ra1 {[%emt 0:00:11]} g5 {[%emt 0:00:26]} 50. h3 {[%emt 0:02:07]} g4 {[%emt 0:00:40]} 51. hxg4 {[%emt 0:00:22]} hxg4 {[%emt 0:00:11]} 52. e5 {[%emt 0:01:54]} Nf7 {[%emt 0:00:23]} 53. fxg4 {[%emt 0:00:05]} fxg4 {[%emt 0:00:07]} 54. b5 {[%emt 0:00:06]} axb5 {[%emt 0:00:41]} 55. axb5 {[%emt 0:00:08]} Nc8 {[%emt 0:02:48]} 56. Ra6 {[%emt 0:01:09]} Bb6 {[%emt 0:00:55]} 57. Bb4 {[%emt 0:00:45]} Kc7 {[%emt 0:00:42]} 58. Ra1 {[%emt 0:01:35]} Nh6 {[%emt 0:01:32]} 59. Rh1 {[%emt 0:00:53]} Nf5 {[%emt 0:00:16]} 60. Rh7+ {[%emt 0:00:18]} Kb8 {[%emt 0:00:25]} 61. Bc5 {[%emt 0:00:47]} Bc7 {[%emt 0:00:39]} 62. Rh8 {[%emt 0:00:24]} Kb7 {[%emt 0:01:00]} 63. Rh7 {[%emt 0:00:18]} Nb6 {[%emt 0:00:53]} 64. Bd6 {[%emt 0:00:24]} Nd5 {[%emt 0:00:12]} 65. Bxc7 {[%emt 0:01:37]} Nxc7 {[%emt 0:00:05]} 66. Kc4 {[%emt 0:00:14]} Nxg3 {[%emt 0:00:47]} 67. Kb4 {[%emt 0:01:10]} Nf5 {[%emt 0:01:48]} 68. Kc5 {[%emt 0:00:22]} g3 {[%emt 0:00:44]} 69. Rh8 {[%emt 0:00:40]} Nd5 {[%emt 0:00:45]} 70. Rg8 {[%emt 0:00:32]} Nf4 {[%emt 0:01:00]} 71. Rf8 {[%emt 0:00:33]} Ng6 {[%emt 0:00:33]} 72. Rf7+ {[%emt 0:00:28]} Nge7 {[%emt 0:00:19]} 73. d5 {[%emt 0:00:28]} g2 {[%emt 0:00:45]} 74. Rxe7+ {[%emt 0:00:05]} Nxe7 {[%emt 0:00:13]} 0-1

[Event "2nd Asian Nations Team Cup U14 2019"]
[Site "Shenzhen"]
[Date "2019.12.23"]
[Round "6.13"]
[White "Han, Xuqian Ben"]
[Black "Yeoh, Yuan Hui"]
[Result "0-1"]
[ECO "B19"]
[WhiteElo "1714"]
[BlackElo "1738"]
[Annotator "NA RC"]
[PlyCount "74"]
[EventDate "2019.12.19"]
[EventType "team-tourn"]
[EventCountry "CHN"]
[SourceTitle "playchess.com"]
[Source "ChessBase"]
[SourceQuality "1"]
[WhiteTeam "Hong Kong"]
[BlackTeam "Malaysia"]
[WhiteTeamCountry "HKG"]
[BlackTeamCountry "MAS"]
[TimeControl "5400+30"]

1. e4 {[%emt 0:00:00]} c6 {[%emt 0:00:00]} 2. d4 {[%emt 0:00:00]} d5 {[%emt 0:00:00]} 3. Nd2 {[%emt 0:00:00]} dxe4 {[%emt 0:00:22]} 4. Nxe4 {[%emt 0:00:00]} Bf5 {[%emt 0:00:06]} 5. Ng3 {[%emt 0:00:00]} Bg6 {[%emt 0:00:06]} 6. h4 {[%emt 0:00:00]} h6 {[%emt 0:01:08]} 7. Nf3 {[%emt 0:00:00]} Nd7 {[%emt 0:00:07]} 8. h5 {[%emt 0:00:01]} Bh7 {[%emt 0:00:07]} 9. Bd3 {[%emt 0:00:01]} Bxd3 {[%emt 0:00:57]} 10. Qxd3 {[%emt 0:00:06]} e6 {[%emt 0:00:10]} 11. Bd2 {[%emt 0:00:03]} Ngf6 {[%emt 0:00:44]} 12. O-O-O {[%emt 0:00:12]} Be7 {[%emt 0:00:06]} 13. Kb1 {[%emt 0:00:04]} O-O {[%emt 0:00:50]} 14. Ne4 {[%emt 0:00:05]} Nxe4 {[%emt 0:00:06]} 15. Qxe4 {[%emt 0:00:04]} Nf6 {[%emt 0:00:08]} 16. Qe2 {[%emt 0:00:02]} Qd5 {[%emt 0:11:36]} 17. Be3 {[%emt 0:04:36]} a5 {[%emt 0:08:08]} 18. g4 {[%emt 0:19:13]} Nxg4 {[%emt 0:07:12]} 19. Rdg1 {[%emt 0:00:38]} f5 {[%emt 0:03:18]} 20. Bc1 {[%emt 0:07:59]} Kh8 {[%emt 0:11:21]} 21. Nh2 {[%emt 0:10:59]} Qxd4 {[%emt 0:21:35]} 22. Nxg4 {[%emt 0:01:02]} fxg4 {[%emt 0:01:22]} 23. Be3 {[%emt 0:04:21]} Qe5 {[%emt 0:03:59]} 24. Rxg4 {[%emt 0:04:16]} Bf6 {[%emt 0:02:22]} 25. c3 {[%emt 0:00:53]} a4 {[%emt 0:02:43]} 26. Qc2 {[%emt 0:11:50]} a3 {[%emt 0:04:37]} 27. Bd4 {[%emt 0:03:36]} Qd5 {[%emt 0:00:59]} 28. Rhg1 {[%emt 0:05:34]} axb2 {[%emt 0:02:15]} 29. Qxb2 {[%emt 0:02:13]} e5 {[%emt 0:00:45]} 30. Be3 {[%emt 0:03:54]} Ra5 {[%emt 0:02:43]} 31. c4 {[%emt 0:02:37]} Qd3+ {[%emt 0:00:11]} 32. Kc1 {[%emt 0:00:18]} e4 {[%emt 0:03:45]} 33. Qb4 {[%emt 0:01:19]} Rfa8 {[%emt 0:01:05]} 34. Rd1 {[%emt 0:05:42]} Qe2 {[%emt 0:00:26]} 35. Rxe4 {[%emt 0:01:52]} Rxa2 {[%emt 0:00:46]} 36. Qb1 {[%emt 0:00:59]} Ra1 {[%emt 0:00:25]} 37. Re8+ {[%emt 0:00:08]} Rxe8 {[%emt 0:00:13]} 0-1

[Event "2nd Asian Nations Team Cup U14 2019"]
[Site "Shenzhen"]
[Date "2019.12.23"]
[Round "6.14"]
[White "Foo, Jiu Yarng Clarance"]
[Black "Kannappan, Thanneermalai"]
[Result "1-0"]
[ECO "E24"]
[WhiteElo "1654"]
[BlackElo "1495"]
[Annotator "NA RC"]
[PlyCount "65"]
[EventDate "2019.12.19"]
[EventType "team-tourn"]
[EventCountry "CHN"]
[SourceTitle "playchess.com"]
[Source "ChessBase"]
[SourceQuality "1"]
[WhiteTeam "Malaysia"]
[BlackTeam "Hong Kong"]
[WhiteTeamCountry "MAS"]
[BlackTeamCountry "HKG"]
[TimeControl "5400+30"]

1. d4 {[%emt 0:00:00]} Nf6 {[%emt 0:00:00]} 2. c4 {[%emt 0:00:00]} e6 {[%emt 0:00:00]} 3. Nc3 {[%emt 0:00:00]} Bb4 {[%emt 0:00:00]} 4. a3 {[%emt 0:00:20]} Bxc3+ {[%emt 0:00:00]} 5. bxc3 {[%emt 0:00:05]} c5 {[%emt 0:00:21]} 6. Nf3 {[%emt 0:00:25]} b6 {[%emt 0:00:33]} 7. Bf4 {[%emt 0:01:47]} Bb7 {[%emt 0:00:12]} 8. e3 {[%emt 0:00:16]} O-O {[%emt 0:01:55]} 9. Be2 {[%emt 0:00:15]} d5 {[%emt 0:01:54]} 10. O-O {[%emt 0:00:53]} Ne4 {[%emt 0:00:40]} 11. Qb3 {[%emt 0:01:08]} Nd7 {[%emt 0:02:54]} 12. Rfd1 {[%emt 0:02:20]} Qe7 {[%emt 0:07:43]} 13. Rac1 {[%emt 0:03:38]} Rac8 {[%emt 0:07:31]} 14. cxd5 {[%emt 0:01:41]} exd5 {[%emt 0:04:53]} 15. c4 {[%emt 0:01:50]} Ba6 {[%emt 0:12:53]} 16. dxc5 {[%emt 0:01:29]} Ndxc5 {[%emt 0:00:24]} 17. Qb4 {[%emt 0:05:02]} Rfd8 {[%emt 0:06:56]} 18. Nd4 {[%emt 0:04:19]} dxc4 {[%emt 0:04:56]} 19. Bxc4 {[%emt 0:04:09]} Bxc4 20. Qxc4 {[%emt 0:04:09]} Qd7 {[%emt 0:17:14]} 21. f3 {[%emt 0:21:05]} Nf6 {[%emt 0:00:47]} 22. Qe2 {[%emt 0:01:50]} Qa4 {[%emt 0:04:08]} 23. Bg5 {[%emt 0:15:55]} Rd6 {[%emt 0:03:45]} 24. Nf5 {[%emt 0:02:14]} Rxd1+ {[%emt 0:01:33]} 25. Rxd1 {[%emt 0:00:16]} Re8 {[%emt 0:01:08]} 26. Bxf6 {[%emt 0:03:13]} gxf6 {[%emt 0:00:03]} 27. Qe1 {[%emt 0:05:45]} Kh8 {[%emt 0:00:26]} 28. Nh6 {[%emt 0:04:49]} Rxe3 {[%emt 0:00:49]} 29. Rd8+ {[%emt 0:00:55]} Kg7 {[%emt 0:00:13]} 30. Rg8+ {[%emt 0:00:14]} Kxh6 {[%emt 0:00:08]} 31. Qxe3+ {[%emt 0:00:09]} Kh5 {[%emt 0:00:10]} 32. g4+ {[%emt 0:00:13]} Kh4 {[%emt 0:00:03]} 33. Qh6# {[%emt 0:00:09]} 1-0

[Event "2nd Asian Nations Team Cup U14 2019"]
[Site "Shenzhen"]
[Date "2019.12.23"]
[Round "6.15"]
[White "Liu, Fung Ming Mathew"]
[Black "Lee, Ryan"]
[Result "0-1"]
[ECO "B34"]
[WhiteElo "1493"]
[BlackElo "1615"]
[Annotator "NA RC"]
[PlyCount "72"]
[EventDate "2019.12.19"]
[EventType "team-tourn"]
[EventCountry "CHN"]
[SourceTitle "playchess.com"]
[Source "ChessBase"]
[SourceQuality "1"]
[WhiteTeam "Hong Kong"]
[BlackTeam "Malaysia"]
[WhiteTeamCountry "HKG"]
[BlackTeamCountry "MAS"]
[TimeControl "5400+30"]

1. e4 {[%emt 0:00:00]} c5 {[%emt 0:00:00]} 2. Nf3 {[%emt 0:00:00]} Nc6 {[%emt 0:00:00]} 3. d4 {[%emt 0:00:00]} cxd4 {[%emt 0:00:00]} 4. Nxd4 {[%emt 0:00:00]} g6 {[%emt 0:00:00]} 5. Nc3 {[%emt 0:00:10]} Bg7 {[%emt 0:00:00]} 6. Be3 {[%emt 0:00:21]} Nf6 {[%emt 0:00:00]} 7. f3 {[%emt 0:00:09]} O-O {[%emt 0:00:11]} 8. g4 {[%emt 0:00:10]} Qb6 {[%emt 0:07:13]} 9. a3 {[%emt 0:02:37]} Nxe4 {[%emt 0:06:06]} 10. fxe4 {[%emt 0:17:25]} Nxd4 {[%emt 0:04:10]} 11. Na4 {[%emt 0:14:32]} Nxc2+ {[%emt 0:00:45]} 12. Qxc2 {[%emt 0:01:06]} Qxe3+ {[%emt 0:00:07]} 13. Be2 {[%emt 0:00:42]} d6 {[%emt 0:02:28]} 14. h3 {[%emt 0:04:42]} Be6 {[%emt 0:04:12]} 15. Nc3 {[%emt 0:03:57]} Rac8 {[%emt 0:02:53]} 16. Rc1 {[%emt 0:05:16]} Bc4 {[%emt 0:01:00]} 17. Kd1 {[%emt 0:16:58]} Bh6 18. Ra1 {[%emt 0:02:11]} Bb3 {[%emt 0:03:07]} 19. Ke1 {[%emt 0:04:53]} Bxc2 {[%emt 0:00:07]} 20. Kf1 {[%emt 0:06:11]} Bxe4 {[%emt 0:01:05]} 21. Rh2 {[%emt 0:01:05]} Bf4 {[%emt 0:00:48]} 22. Rf2 {[%emt 0:03:55]} Bg3 {[%emt 0:00:08]} 23. Nxe4 {[%emt 0:01:27]} Bxf2 {[%emt 0:00:12]} 24. Nxf2 {[%emt 0:00:10]} Rc1+ {[%emt 0:00:03]} 25. Rxc1 {[%emt 0:00:15]} Qxc1+ {[%emt 0:00:01]} 26. Kg2 {[%emt 0:00:49]} Qxb2 {[%emt 0:00:04]} 27. Bf3 {[%emt 0:00:14]} Rc8 {[%emt 0:00:06]} 28. Kg3 {[%emt 0:02:16]} Qxa3 {[%emt 0:00:11]} 29. Kg2 {[%emt 0:00:50]} Rc2 {[%emt 0:00:09]} 30. Be4 {[%emt 0:00:34]} Rd2 {[%emt 0:00:19]} 31. Kf1 {[%emt 0:02:57]} Qe3 {[%emt 0:00:07]} 32. Nh1 {[%emt 0:02:07]} Rd1+ {[%emt 0:00:16]} 33. Kg2 {[%emt 0:00:13]} Qxe4+ {[%emt 0:00:05]} 34. Kg3 {[%emt 0:00:24]} Qe3+ {[%emt 0:00:41]} 35. Kh4 {[%emt 0:00:57]} Rxh1 {[%emt 0:00:07]} 36. g5 {[%emt 0:00:12]} Qf4# {[%emt 0:00:01]} 0-1

[Event "2nd Asian Nations Team Cup U14 2019"]
[Site "Shenzhen"]
[Date "2019.12.23"]
[Round "6.16"]
[White "Foo, Jing Er Claire"]
[Black "Lee, Gerent Chak Yan"]
[Result "0-1"]
[ECO "D55"]
[WhiteElo "1546"]
[BlackElo "1450"]
[Annotator "NA RC"]
[PlyCount "110"]
[EventDate "2019.12.19"]
[EventType "team-tourn"]
[EventCountry "CHN"]
[SourceTitle "playchess.com"]
[Source "ChessBase"]
[SourceQuality "1"]
[WhiteTeam "Malaysia"]
[BlackTeam "Hong Kong"]
[WhiteTeamCountry "MAS"]
[BlackTeamCountry "HKG"]
[TimeControl "5400+30"]

1. d4 {[%emt 0:00:00]} Nf6 {[%emt 0:00:00]} 2. c4 {[%emt 0:00:00]} e6 {[%emt 0:00:00]} 3. Nf3 {[%emt 0:00:00]} d5 {[%emt 0:00:43]} 4. Bg5 {[%emt 0:00:17]} Be7 {[%emt 0:00:29]} 5. Nc3 {[%emt 0:00:07]} O-O {[%emt 0:00:37]} 6. e3 {[%emt 0:00:05]} b6 {[%emt 0:00:51]} 7. cxd5 {[%emt 0:00:14]} exd5 {[%emt 0:02:37]} 8. Bd3 {[%emt 0:00:12]} Bb7 {[%emt 0:00:53]} 9. O-O {[%emt 0:00:15]} Ne4 {[%emt 0:03:30]} 10. Bxe7 {[%emt 0:02:35]} Qxe7 {[%emt 0:00:12]} 11. Qc2 {[%emt 0:03:10]} Nd7 {[%emt 0:05:44]} 12. a4 {[%emt 0:05:49]} a6 {[%emt 0:13:48]} 13. Be2 {[%emt 0:13:07]} Rac8 {[%emt 0:04:13]} 14. Bd3 {[%emt 0:09:21]} h6 {[%emt 0:03:35]} 15. Rac1 {[%emt 0:04:23]} c5 {[%emt 0:00:50]} 16. Qe2 {[%emt 0:05:01]} Nxc3 17. Rxc3 {[%emt 0:01:11]} c4 {[%emt 0:01:55]} 18. Bf5 {[%emt 0:03:23]} g6 {[%emt 0:03:57]} 19. Bxd7 {[%emt 0:04:50]} Qxd7 {[%emt 0:00:39]} 20. Ra1 {[%emt 0:13:58]} b5 {[%emt 0:16:40]} 21. Ne5 {[%emt 0:00:00]} Qf5 {[%emt 0:09:32]} 22. g4 {[%emt 0:04:20]} Qe6 {[%emt 0:05:05]} 23. f4 {[%emt 0:05:28]} b4 {[%emt 0:01:21]} 24. Rcc1 {[%emt 0:00:52]} Kh7 {[%emt 0:01:16]} 25. Qf3 {[%emt 0:01:57]} Rg8 {[%emt 0:05:00]} 26. Kh1 {[%emt 0:04:20]} Rc7 {[%emt 0:04:14]} 27. f5 {[%emt 0:03:19]} gxf5 {[%emt 0:02:00]} 28. gxf5 {[%emt 0:00:16]} Qf6 {[%emt 0:00:39]} 29. Rg1 {[%emt 0:01:23]} Rxg1+ {[%emt 0:02:52]} 30. Rxg1 {[%emt 0:01:21]} c3 {[%emt 0:01:07]} 31. bxc3 {[%emt 0:00:58]} bxc3 {[%emt 0:00:05]} 32. Qg4 {[%emt 0:02:42]} Qg5 {[%emt 0:02:19]} 33. Qxg5 {[%emt 0:03:39]} hxg5 {[%emt 0:00:07]} 34. Rc1 {[%emt 0:00:41]} f6 {[%emt 0:00:34]} 35. Nd3 {[%emt 0:01:31]} Rc4 {[%emt 0:00:44]} 36. Nc5 {[%emt 0:01:54]} Bc8 {[%emt 0:00:19]} 37. e4 {[%emt 0:02:45]} dxe4 {[%emt 0:00:19]} 38. Nxe4 {[%emt 0:00:08]} Bb7 {[%emt 0:03:21]} 39. Kg1 {[%emt 0:01:35]} Bxe4 {[%emt 0:00:00]} 40. Kf2 Bxf5 {[%emt 0:00:00]} 41. Ke3 c2 {[%emt 0:00:00]} 42. d5 {[%emt 0:00:43]} Kg6 {[%emt 0:00:00]} 43. a5 {[%emt 0:00:31]} Kf7 {[%emt 0:00:00]} 44. d6 {[%emt 0:01:00]} Ke6 {[%emt 0:00:00]} 45. h4 {[%emt 0:00:22]} gxh4 {[%emt 0:00:00]} 46. d7 {[%emt 0:00:34]} Kxd7 {[%emt 0:00:00]} 47. Ke2 {[%emt 0:00:17]} Rb4 {[%emt 0:00:11]} 48. Rf1 {[%emt 0:01:44]} Rb1 {[%emt 0:00:18]} 49. Rxf5 {[%emt 0:00:19]} c1=Q {[%emt 0:00:09]} 50. Rd5+ {[%emt 0:00:05]} Ke6 {[%emt 0:00:07]} 51. Rd2 {[%emt 0:00:09]} Qf1+ {[%emt 0:00:43]} 52. Ke3 {[%emt 0:00:08]} Rb3+ {[%emt 0:00:14]} 53. Kd4 {[%emt 0:00:42]} Qf4+ {[%emt 0:00:10]} 54. Kc5 {[%emt 0:00:06]} Qb4+ {[%emt 0:00:07]} 55. Kc6 {[%emt 0:00:09]} Qc4# {[%emt 0:00:12]} 0-1

[Event "2nd Asian Nations Team Cup U14 2019"]
[Site "Shenzhen"]
[Date "2019.12.23"]
[Round "6.17"]
[White "Wang, Benchi"]
[Black "Wei, Jianzhou"]
[Result "0-1"]
[ECO "D00"]
[WhiteElo "1747"]
[BlackElo "1755"]
[Annotator "NA RC"]
[PlyCount "93"]
[EventDate "2019.12.19"]
[EventType "team-tourn"]
[EventCountry "CHN"]
[SourceTitle "playchess.com"]
[Source "ChessBase"]
[SourceQuality "1"]
[WhiteTeam "China"]
[BlackTeam "China"]
[WhiteTeamCountry "CHN"]
[BlackTeamCountry "CHN"]
[TimeControl "5400+30"]

1. d4 {[%emt 0:00:00]} d5 {[%emt 0:00:00]} 2. Bf4 {[%emt 0:00:00]} Nf6 {[%emt 0:00:00]} 3. e3 {[%emt 0:00:00]} e6 {[%emt 0:00:00]} 4. Nd2 {[%emt 0:00:05]} c5 {[%emt 0:00:44]} 5. c3 {[%emt 0:00:06]} Bd6 {[%emt 0:00:13]} 6. Bb5+ {[%emt 0:09:56]} Nc6 {[%emt 0:00:42]} 7. Bxc6+ {[%emt 0:00:21]} bxc6 {[%emt 0:00:08]} 8. Bxd6 {[%emt 0:00:05]} Qxd6 {[%emt 0:00:09]} 9. Ngf3 {[%emt 0:00:05]} Ba6 {[%emt 0:02:39]} 10. Qa4 {[%emt 0:00:21]} Bb5 {[%emt 0:01:21]} 11. Qa3 {[%emt 0:00:19]} Nd7 {[%emt 0:04:34]} 12. Nb3 {[%emt 0:00:25]} O-O {[%emt 0:05:19]} 13. Nxc5 {[%emt 0:01:20]} Nxc5 {[%emt 0:03:12]} 14. Qxc5 {[%emt 0:01:42]} Qc7 {[%emt 0:01:00]} 15. a4 {[%emt 0:00:55]} Ba6 {[%emt 0:01:05]} 16. b4 {[%emt 0:03:05]} Rfc8 {[%emt 0:00:32]} 17. Nd2 {[%emt 0:14:00]} Rab8 {[%emt 0:04:56]} 18. Nb3 {[%emt 0:07:36]} Bc4 {[%emt 0:00:10]} 19. Ra3 {[%emt 0:05:24]} Rb6 {[%emt 0:10:45]} 20. Nd2 {[%emt 0:02:41]} Bd3 {[%emt 0:01:29]} 21. f4 {[%emt 0:02:50]} a6 {[%emt 0:08:27]} 22. Kf2 {[%emt 0:01:16]} Rcb8 {[%emt 0:05:09]} 23. Rc1 {[%emt 0:02:16]} Bf5 {[%emt 0:07:21]} 24. c4 {[%emt 0:03:04]} Rxb4 {[%emt 0:00:03]} 25. cxd5 {[%emt 0:00:06]} Rb2 {[%emt 0:00:06]} 26. Ke1 {[%emt 0:02:03]} exd5 {[%emt 0:00:42]} 27. Qxc6 {[%emt 0:00:28]} Qe7 {[%emt 0:05:41]} 28. Rac3 {[%emt 0:01:21]} g6 {[%emt 0:05:19]} 29. g3 {[%emt 0:01:43]} Rxd2 {[%emt 0:03:47]} 30. Kxd2 {[%emt 0:00:54]} Qe4 {[%emt 0:04:10]} 31. Qc7 {[%emt 0:28:15]} Qg2+ {[%emt 0:01:04]} 32. Ke1 {[%emt 0:00:07]} Rb2 {[%emt 0:01:29]} 33. R3c2 {[%emt 0:01:07]} Qg1+ {[%emt 0:07:11]} 34. Ke2 {[%emt 0:00:14]} Qxh2+ {[%emt 0:00:46]} 35. Kd1 {[%emt 0:03:03]} Qg1+ {[%emt 0:00:17]} 36. Ke2 {[%emt 0:00:09]} Qg2+ {[%emt 0:00:31]} 37. Ke1 {[%emt 0:00:14]} Qxg3+ {[%emt 0:00:20]} 38. Ke2 {[%emt 0:00:21]} Qg2+ {[%emt 0:00:08]} 39. Ke1 {[%emt 0:00:03]} Rxc2 {[%emt 0:01:31]} 40. Rxc2 {[%emt 0:00:34]} Qxc2 {[%emt 0:01:49]} 41. Qd8+ {[%emt 0:00:23]} Kg7 {[%emt 0:00:06]} 42. Qxd5 {[%emt 0:00:05]} Qe4 {[%emt 0:02:32]} 43. Qb3 {[%emt 0:00:53]} Qb1+ {[%emt 0:01:19]} 44. Qxb1 {[%emt 0:00:10]} Bxb1 {[%emt 0:00:02]} 45. d5 {[%emt 0:00:24]} Be4 {[%emt 0:00:05]} 46. d6 {[%emt 0:00:04]} Kf6 {[%emt 0:00:04]} 47. d7 {[%emt 0:00:07] Ke5} 0-1